fUST/lending_fUST_20251230
["ID","MTS","AMOUNT","RATE_DAILY","PERIOD"]
[400039302,1767046644157,-227.68,0.00015075,2]
[400039303,1767046644286,-720.0,0.00015242,2]
[400039304,1767046644316,-177.0,0.00015584,2]
[400039305,1767046644348,-284.6,0.00015704,2]
[400039306,1767046644376,-502.70058573,0.00015936,2]
[400039307,1767046644408,-341.52,0.00016332,2]
[400039308,1767046644438,-864.0,0.00016766,2]
[400039309,1767046644469,-398.44,0.0001696,2]
[400039310,1767046644499,-204.0,0.00017584,2]
[400039311,1767046644530,-455.36,0.00017588,2]
[400039312,1767046644557,-297.5119777,0.00017751,2]
[400039313,1767046644587,-512.28,0.00018216,2]
[400039314,1767046644686,-1000.0,0.00018443,2]
[400039315,1767046644714,-250.0,0.00018799,2]
[400039316,1767046644746,-569.21,0.00018844,2]
[400039317,1767046644775,-231.0,0.00019584,2]
[400039318,1767046644803,-1041.66666667,0.00020172,2]
[400039319,1767046644833,-162.47,0.000202,2]
[400039320,1767046644863,-157.12,0.000202,2]
[400039321,1767046644895,-1000.0,0.00020287,2]
[400039322,1767046644926,-244.0,0.00020287,2]
[400039323,1767046644955,-186.37608093,0.00020298,2]
[400039324,1767046644991,-316.3245048,0.00020298,2]
[400039325,1767046645019,-155.0,0.00020493,3]
[400039326,1767046645047,-258.0,0.00021584,2]
[400039327,1767046645073,-500.0,0.00021917,2]
[400039328,1767046645102,-338.3045025,0.00021917,2]
[400039329,1767046645129,-199.50718454,0.00021917,2]
[400039330,1767046645155,-515.43639332,0.00021917,2]
[400039331,1767046645183,-332.28303991,0.00021917,2]
[400039332,1767046645211,-407.47489559,0.00021917,2]
[400039333,1767046645317,-282.47239194,0.00021917,2]
[400039334,1767046645344,-236.94054092,0.00021917,2]
[400039335,1767046645371,-500.0,0.00021917,2]
[400039336,1767046645398,-622.69121472,0.00021917,2]
[400039337,1767046645425,-171.14066352,0.00021917,2]
[400039338,1767046645527,-3697.76811875,0.00013857,2]
[400039339,1767046645554,-328.85933648,0.00021917,2]
[400039340,1767046645582,-595.06230155,0.00021917,2]
[400039341,1767046645610,-176.72067326,0.00021917,2]
[400039342,1767046645763,-403.18913992,0.00021917,2]
[400039343,1767046645791,-429.41639559,0.00021917,2]
[400039344,1767046645818,-231.94031787,0.00021917,2]
[400039345,1767046645845,-222.57135866,0.00021917,2]
[400039346,1767046645873,-391.3718607,0.00021917,2]
[400039347,1767046645901,-429.31446917,0.00021917,2]
[400039348,1767046645929,-316.49095567,0.00021917,2]
[400039349,1767046645958,-210.28506365,0.00021917,2]
[400039350,1767046645987,-262.87676403,0.00021917,2]
[400039351,1767046646015,-168.52666437,0.00021917,2]
[400039352,1767046646041,-456.52226619,0.00021917,2]
[400039353,1767046646068,-478.6229675,0.00021917,2]
[400039354,1767046646095,-281.44204914,0.00021917,2]
[400039355,1767046646122,-498.08828265,0.00021917,2]
[400039356,1767046646292,-500.0,0.00021917,2]
[400039357,1767046646320,-268.16933491,0.00021917,2]
[400039358,1767046646348,-230.11756583,0.00021917,2]
[400039359,1767046646455,-494.78835906,0.00021917,2]
[400039360,1767046646484,-405.47737161,0.00021917,2]
[400039361,1767046646512,-603.54,0.00022,7]
[400039362,1767046646539,-500.0,0.00022191,2]
[400039363,1767046646567,-1134.00777411,0.00022216,2]
[400039364,1767046646667,-1727.80918896,0.00022216,2]
[400039365,1767046646699,-1000.0,0.00022316,10]
[400039366,1767046646730,-492.0,0.00022316,10]
[400039367,1767046646763,-285.0,0.00023584,2]
[400039368,1767046646794,-128.57465905,0.00024389,2]
[400039369,1767046646876,-2733.24230398,0.00024389,2]
[400039370,1767046646906,-1000.0,0.00024548,10]
[400039371,1767046646938,-791.0,0.00024548,10]
[400039372,1767046646966,-448.82480631,0.0002466,2]
[400039373,1767046647207,-53.87577942,0.0002466,2]
[400039374,1767046649673,-180.63012009,0.00020899,2]
[400039375,1767046649682,-43.38444024,0.000248,2]
[400039376,1767046649697,-791.0,0.000248,2]
[400039377,1767046649991,-502.70058573,0.000248,2]
[400039378,1767046650013,-53.87577942,0.000248,2]
[400039379,1767046650027,-9892.25844116,0.000248,2]
[400039380,1767046650042,-5833.72376315,0.000248,2]
[400039381,1767046650051,-1745.47,0.0002489,10]
[400039382,1767046650061,-2420.81623685,0.000249,2]
[400039383,1767046650075,-10000.01,0.000249,2]
[400039384,1767046650093,-163.63,0.000163,2]
[400039385,1767046650104,-9836.38,0.000249,2]
[400039386,1767046650118,-10000.01,0.000249,2]
[400039387,1767046650265,-190.9,0.00016926,2]
[400039388,1767046650299,-218.17,0.00017553,2]
[400039389,1767046650330,-245.44,0.0001818,2]
[400039390,1767046650358,-3745.86159545,0.000249,2]
[400039391,1767046650409,-1199.2668091,0.000249,2]
[400039392,1767046650437,-154.21565219,0.00025,30]
[400039393,1767046650465,-215.85310535,0.00025205,14]
[400039394,1767046650494,-312.0,0.00025584,2]
[400039395,1767046650523,-2908.83886672,0.00025615,10]
[400039396,1767046650597,-272.71,0.00018807,2]
[400039397,1767046650625,-419.66113328,0.00025615,10]
[400039398,1767046650653,-1364.0,0.00025625,2]
[400039399,1767046650681,-627.0,0.00025625,2]
[400039400,1767046650708,-2156.0,0.00025625,2]
[400039401,1767046650909,-416.0,0.00025625,2]
[400039403,1767046827969,219.43553,0.00027,120]
[400039404,1767046834857,461.21935,0.00027,120]
[400039405,1767046835169,461.21935,0.000281,120]
[400039407,1767047083569,5000.0,0.00013172,2]
[400039408,1767047087723,290.910725,0.00013057,2]
[400039410,1767047233528,165.559056,0.00013086,2]
[400039413,1767047310563,4543.540219,0.00013172,2]
[400039414,1767047310587,456.459781,0.00013172,2]
[400039451,1767047431820,-5000.0,0.00013317,2]
[400039453,1767047431829,-609.0,0.00013317,2]
[400039455,1767047431840,-165.11072628,0.00013452,2]
[400039457,1767047431848,-300.0,0.00013582,2]
[400039459,1767047431858,-300.0,0.00013582,2]
[400039461,1767047431867,-300.0,0.00013582,2]
[400039463,1767047431876,-300.0,0.00013582,2]
[400039465,1767047431885,-300.0,0.00013582,2]
[400039467,1767047431901,-300.0,0.00013582,2]
[400039469,1767047431921,-300.0,0.00013582,2]
[400039470,1767047431931,-300.0,0.00013582,2]
[400039472,1767047431940,-300.0,0.00013582,2]
[400039474,1767047431950,-300.0,0.00013582,2]
[400039476,1767047431959,-300.0,0.00013582,2]
[400039478,1767047431969,-300.0,0.00013582,2]
[400039480,1767047431978,-270.19971121,0.00013582,2]
[400039483,1767047431989,-29.80028879,0.00013582,2]
[400039485,1767047431998,-300.0,0.00013582,2]
[400039486,1767047432007,-300.0,0.00013582,2]
[400039488,1767047432016,-1054.6260654,0.00013699,2]
[400039490,1767047432026,-500.0,0.00013968,2]
[400039492,1767047432035,-278.94300174,0.00013968,2]
[400039494,1767047432044,-1200.0,0.00014104,2]
[400039496,1767047432053,-300.0,0.00014104,2]
[400039498,1767047432067,-300.0,0.00014104,2]
[400039500,1767047432076,-500.0,0.00014105,2]
[400039502,1767047432085,-177.30496876,0.00014105,2]
[400039504,1767047432095,-153.20745646,0.00014105,2]
[400039506,1767047432104,-168.21,0.00014135,2]
[400039508,1767047432114,-10000.01,0.00014139,2]
[400039510,1767047432123,-500.0,0.00014139,2]
[400039512,1767047432134,-484.25650225,0.00014139,2]
[400039514,1767047432144,-500.0,0.00014139,2]
[400039516,1767047432154,-500.0,0.00014139,2]
[400039518,1767047432163,-500.0,0.00014139,2]
[400039520,1767047432174,-500.0,0.00014139,2]
[400039521,1767047432183,-531.69636672,0.00014139,2]
[400039522,1767047432193,-500.0,0.00014139,2]
[400039523,1767047432202,-500.0,0.00014139,2]
[400039524,1767047432211,-500.0,0.00014139,2]
[400039525,1767047432221,-500.0,0.00014139,2]
[400039526,1767047432230,-500.0,0.00014139,2]
[400039528,1767047432238,-500.0,0.00014139,2]
[400039530,1767047432247,-500.0,0.00014139,2]
[400039532,1767047432256,-474.30036004,0.00014139,2]
[400039534,1767047432266,-500.0,0.00014139,2]
[400039536,1767047432275,-500.0,0.00014139,2]
[400039538,1767047432284,-500.0,0.00014139,2]
[400039540,1767047432294,-600.0,0.00014139,2]
[400039542,1767047432303,-500.0,0.00014139,2]
[400039544,1767047432312,-500.0,0.00014139,2]
[400039546,1767047432321,-500.0,0.00014139,2]
[400039548,1767047432330,-500.0,0.00014139,2]
[400039550,1767047432339,-500.0,0.00014139,2]
[400039552,1767047432348,-500.0,0.00014139,2]
[400039553,1767047432358,-500.0,0.00014139,2]
[400039555,1767047432367,-500.0,0.00014139,2]
[400039557,1767047432376,-500.0,0.00014139,2]
[400039559,1767047432385,-500.0,0.00014139,2]
[400039561,1767047432395,-500.0,0.00014139,2]
[400039563,1767047432404,-500.0,0.00014139,2]
[400039565,1767047432413,-500.0,0.00014139,2]
[400039567,1767047432422,-500.0,0.00014139,2]
[400039569,1767047432431,-500.0,0.00014139,2]
[400039571,1767047432441,-500.0,0.00014139,2]
[400039573,1767047432450,-500.0,0.00014139,2]
[400039575,1767047432459,-500.0,0.00014139,2]
[400039577,1767047432469,-500.0,0.00014139,2]
[400039579,1767047432478,-500.0,0.00014139,2]
[400039581,1767047432486,-500.0,0.00014139,2]
[400039583,1767047432495,-500.0,0.00014139,2]
[400039585,1767047432504,-445.66681829,0.00014139,2]
[400039587,1767047432514,-381.0973014,0.00014139,2]
[400040141,1767047437936,-118.9026986,0.00014139,2]
[400040143,1767047437946,-500.0,0.00014139,2]
[400040145,1767047437955,-500.0,0.00014139,2]
[400040147,1767047437964,-500.0,0.00014139,2]
[400040149,1767047437974,-500.0,0.00014139,2]
[400040151,1767047437983,-500.0,0.00014139,2]
[400040152,1767047437992,-500.0,0.00014139,2]
[400040154,1767047438002,-187.0556498,0.00014139,2]
[400040156,1767047438012,-500.0,0.00014139,2]
[400040158,1767047438021,-500.0,0.00014139,2]
[400040161,1767047438032,-500.0,0.00014139,2]
[400040163,1767047438041,-500.0,0.00014139,2]
[400040165,1767047438050,-500.0,0.00014139,2]
[400040167,1767047438060,-500.0,0.00014139,2]
[400040169,1767047438072,-500.0,0.00014139,2]
[400040171,1767047438081,-500.0,0.00014139,2]
[400040173,1767047438091,-500.0,0.00014139,2]
[400040175,1767047438100,-500.0,0.00014139,2]
[400040177,1767047438111,-500.0,0.00014139,2]
[400040179,1767047438119,-500.0,0.00014139,2]
[400040181,1767047438129,-500.0,0.00014139,2]
[400040183,1767047438138,-500.0,0.00014139,2]
[400040185,1767047438147,-500.0,0.00014139,2]
[400040187,1767047438157,-500.0,0.00014139,2]
[400040189,1767047438166,-500.0,0.00014139,2]
[400040191,1767047438176,-500.0,0.00014139,2]
[400040193,1767047438185,-500.0,0.00014139,2]
[400040194,1767047438195,-500.0,0.00014139,2]
[400040197,1767047438204,-500.0,0.00014139,2]
[400040199,1767047438214,-500.0,0.00014139,2]
[400040200,1767047438224,-489.43786102,0.00014139,2]
[400040203,1767047438237,-500.0,0.00014139,2]
[400040204,1767047438247,-500.0,0.00014139,2]
[400040207,1767047438256,-500.0,0.00014139,2]
[400040208,1767047438265,-500.0,0.00014139,2]
[400040211,1767047438274,-500.0,0.00014139,2]
[400040212,1767047438284,-500.0,0.00014139,2]
[400040214,1767047438293,-500.0,0.00014139,2]
[400040217,1767047438303,-500.0,0.00014139,2]
[400040218,1767047438312,-500.0,0.00014139,2]
[400040221,1767047438322,-500.0,0.00014139,2]
[400040223,1767047438331,-500.0,0.00014139,2]
[400040224,1767047438340,-500.0,0.00014139,2]
[400040227,1767047438350,-500.0,0.00014139,2]
[400040228,1767047438359,-500.0,0.00014139,2]
[400040230,1767047438368,-500.0,0.00014139,2]
[400040232,1767047438378,-500.0,0.00014139,2]
[400040235,1767047438388,-500.0,0.00014139,2]
[400040236,1767047438397,-500.0,0.00014139,2]
[400040238,1767047438406,-500.0,0.00014139,2]
[400040240,1767047438415,-532.15976234,0.00014139,2]
[400040242,1767047438424,-500.0,0.00014139,2]
[400040244,1767047438434,-500.0,0.00014139,2]
[400040246,1767047438443,-500.0,0.00014139,2]
[400040248,1767047438452,-500.0,0.00014139,2]
[400040250,1767047438463,-500.0,0.00014139,2]
[400040252,1767047438472,-500.0,0.00014139,2]
[400040254,1767047438482,-500.0,0.00014139,2]
[400040256,1767047438491,-500.0,0.00014139,2]
[400040258,1767047438500,-500.0,0.00014139,2]
[400040260,1767047438509,-500.0,0.00014139,2]
[400040262,1767047438519,-500.0,0.00014139,2]
[400040264,1767047438528,-500.0,0.00014139,2]
[400040266,1767047438537,-500.0,0.00014139,2]
[400040268,1767047438547,-500.0,0.00014139,2]
[400040270,1767047438557,-500.0,0.00014139,2]
[400040271,1767047438567,-500.0,0.00014139,2]
[400040272,1767047438578,-500.0,0.00014139,2]
[400040273,1767047438588,-500.0,0.00014139,2]
[400040274,1767047438597,-500.0,0.00014139,2]
[400040275,1767047438608,-500.0,0.00014139,2]
[400040276,1767047438618,-500.0,0.00014139,2]
[400040277,1767047438628,-443.75877196,0.00014139,2]
[400040278,1767047438638,-500.0,0.00014139,2]
[400040279,1767047438647,-500.0,0.00014139,2]
[400040284,1767047438657,-500.0,0.00014139,2]
[400040287,1767047438774,-500.0,0.00014139,2]
[400040289,1767047438785,-500.0,0.00014139,2]
[400040291,1767047438794,-500.0,0.00014139,2]
[400040293,1767047438804,-500.0,0.00014139,2]
[400040295,1767047438813,-500.0,0.00014139,2]
[400040297,1767047438822,-500.0,0.00014139,2]
[400040299,1767047438832,-500.0,0.00014139,2]
[400040301,1767047438841,-500.0,0.00014139,2]
[400040303,1767047438850,-500.0,0.00014139,2]
[400040305,1767047438859,-500.0,0.00014139,2]
[400040307,1767047438868,-500.0,0.00014139,2]
[400040309,1767047438877,-500.0,0.00014139,2]
[400040311,1767047438886,-500.0,0.00014139,2]
[400040312,1767047438895,-500.0,0.00014139,2]
[400040315,1767047438905,-500.0,0.00014139,2]
[400040316,1767047438914,-500.0,0.00014139,2]
[400040318,1767047438924,-500.0,0.00014139,2]
[400040321,1767047438934,-500.0,0.00014139,2]
[400040323,1767047438943,-500.0,0.00014139,2]
[400040325,1767047438953,-500.0,0.00014139,2]
[400040326,1767047438962,-500.0,0.00014139,2]
[400040328,1767047438972,-382.8518687,0.00014139,2]
[400040330,1767047438982,-422.90959833,0.00014139,2]
[400040332,1767047438992,-500.0,0.00014139,2]
[400040334,1767047439002,-500.0,0.00014139,2]
[400040336,1767047439012,-500.0,0.00014139,2]
[400040338,1767047439021,-500.0,0.00014139,2]
[400040341,1767047439031,-500.0,0.00014139,2]
[400040343,1767047439040,-500.0,0.00014139,2]
[400040344,1767047439050,-3005.13989431,0.0001414,2]
[400040346,1767047439059,-253.12300422,0.00014378,2]
[400040348,1767047439074,-600.0,0.00014421,2]
[400040351,1767047439083,-176.25411543,0.00014516,2]
[400040353,1767047439093,-252.31,0.00014778,2]
[400040354,1767047439102,-177.0,0.00015385,2]
[400040356,1767047439114,-336.41,0.0001542,2]
[400040358,1767047439124,-720.0,0.00015863,2]
[400040360,1767047439133,-420.52,0.00016063,2]
[400040362,1767047439144,-250.59874947,0.00016068,2]
[400040364,1767047439153,-500.0,0.00016438,2]
[400040366,1767047439163,-500.0,0.00016438,2]
[400040369,1767047439172,-500.0,0.00016438,2]
[400040371,1767047439182,-500.0,0.00016438,2]
[400040372,1767047439191,-500.0,0.00016438,2]
[400040374,1767047439200,-500.0,0.00016438,2]
[400040377,1767047439210,-500.0,0.00016438,2]
[400040379,1767047439220,-500.0,0.00016438,2]
[400040381,1767047439229,-500.0,0.00016438,2]
[400040383,1767047439239,-500.0,0.00016438,2]
[400040384,1767047439249,-174.97592923,0.00016438,2]
[400040386,1767047439258,-500.0,0.00016438,2]
[400040388,1767047439267,-500.0,0.00016438,2]
[400040390,1767047439277,-500.0,0.00016438,2]
[400040392,1767047439287,-500.0,0.00016438,2]
[400040394,1767047439297,-500.0,0.00016438,2]
[400040396,1767047439307,-500.0,0.00016438,2]
[400040398,1767047439316,-500.0,0.00016438,2]
[400040400,1767047439326,-500.0,0.00016438,2]
[400040402,1767047439336,-500.0,0.00016438,2]
[400040404,1767047439345,-500.0,0.00016438,2]
[400040406,1767047439356,-500.0,0.00016438,2]
[400040408,1767047439365,-500.0,0.00016438,2]
[400040410,1767047439375,-500.0,0.00016438,2]
[400040412,1767047439384,-500.0,0.00016438,2]
[400040414,1767047439395,-500.0,0.00016438,2]
[400040416,1767047439404,-500.0,0.00016438,2]
[400040418,1767047439413,-574.78336307,0.00016438,2]
[400040420,1767047439423,-500.0,0.00016438,2]
[400040422,1767047439433,-500.0,0.00016438,2]
[400040424,1767047439443,-500.0,0.00016438,2]
[400040426,1767047439453,-500.0,0.00016438,2]
[400040427,1767047439462,-500.0,0.00016438,2]
[400040428,1767047439471,-500.0,0.00016438,2]
[400040429,1767047439481,-500.0,0.00016438,2]
[400040430,1767047439491,-500.0,0.00016438,2]
[400040431,1767047439501,-500.0,0.00016438,2]
[400040432,1767047439511,-500.0,0.00016438,2]
[400040433,1767047439521,-500.0,0.00016438,2]
[400040434,1767047439530,-500.0,0.00016438,2]
[400040435,1767047439540,-500.0,0.00016438,2]
[400040436,1767047439550,-500.0,0.00016438,2]
[400040437,1767047439559,-500.0,0.00016438,2]
[400040438,1767047439568,-500.0,0.00016438,2]
[400040439,1767047439578,-500.0,0.00016438,2]
[400040440,1767047439587,-500.0,0.00016438,2]
[400040441,1767047439596,-500.0,0.00016438,2]
[400040442,1767047439605,-500.0,0.00016438,2]
[400040443,1767047439615,-500.0,0.00016438,2]
[400040444,1767047439623,-500.0,0.00016438,2]
[400040445,1767047439632,-500.0,0.00016438,2]
[400040446,1767047439642,-500.0,0.00016438,2]
[400040447,1767047439651,-500.0,0.00016438,2]
[400040448,1767047439660,-500.0,0.00016438,2]
[400040449,1767047439669,-500.0,0.00016438,2]
[400040450,1767047439678,-450.0,0.00016438,2]
[400040451,1767047439687,-196.2360119,0.00016438,2]
[400040452,1767047439701,-303.7639881,0.00016438,2]
[400040453,1767047439710,-500.0,0.00016438,2]
[400040454,1767047439719,-500.0,0.00016438,2]
[400040455,1767047439728,-500.0,0.00016438,2]
[400040456,1767047439737,-500.0,0.00016438,2]
[400040457,1767047439746,-500.0,0.00016438,2]
[400040458,1767047439756,-500.0,0.00016438,2]
[400040459,1767047439766,-500.0,0.00016438,2]
[400040460,1767047439775,-500.0,0.00016438,2]
[400040461,1767047439785,-500.0,0.00016438,2]
[400040462,1767047439794,-500.0,0.00016438,2]
[400040463,1767047439804,-200.0,0.00016438,2]
[400040464,1767047439814,-500.0,0.00016438,2]
[400040465,1767047439823,-500.0,0.00016438,2]
[400040466,1767047439832,-500.0,0.00016438,2]
[400040467,1767047439841,-504.62,0.00016705,2]
[400040468,1767047439850,-6699.82733155,0.00016988,2]
[400040469,1767047439860,-100000.0,0.0001699,2]
[400040470,1767047439871,-111262.18563602,0.00017,2]
[400040471,1767047439881,-250.85059947,0.00017002,2]
[400040472,1767047439890,-588.73,0.00017348,2]
[400040473,1767047439899,-204.0,0.00017385,2]
[400040474,1767047439909,-864.0,0.00017449,2]
[400040475,1767047439920,-3005.1398943,0.00017474,2]
[400040476,1767047439929,-1164.4328326,0.000176,2]
[400040477,1767047439939,-949.41053612,0.000179,2]
[400040478,1767047439948,-672.83,0.0001799,2]
[400040480,1767047439957,-161494.47901714,0.00018,2]
[400040481,1767047439966,-6512.51030854,0.00018,5]
[400040483,1767047439975,-8504.13693104,0.00018,2]
[400040485,1767047439985,-29962.96042931,0.00018,2]
[400040487,1767047439995,-250.0,0.00018191,2]
[400040489,1767047440008,-949.41053612,0.0001845,2]
[400040491,1767047440020,-756.93,0.00018633,2]
[400040492,1767047440033,-21742.51829662,0.000189,2]
[400040493,1767047440046,-949.41053612,0.00019,2]
[400040494,1767047440062,-19441.56326657,0.00019,2]
[400040495,1767047440073,-1000.0,0.00019194,2]
[400040496,1767047440084,-841.04,0.00019275,2]
[400040497,1767047440095,-231.0,0.00019385,2]
[400040498,1767047440107,-162.46,0.000194,2]
[400040499,1767047440118,-157.12,0.000194,2]
[400040500,1767047440132,-949.41053612,0.0001955,2]
[400040502,1767047440146,-27632.555977,0.00019887,3]
[400040504,1767047440158,-1640.64,0.0002,2]
[400040507,1767047440170,-400.0,0.0002,2]
[400040510,1767047440182,-50701.45680191,0.0002,10]
[400040514,1767047440194,-371.3687961,0.0002,2]
[400040518,1767047440206,-949.41053612,0.000201,2]
[400040520,1767047440218,-1041.66666667,0.00020176,2]
[400040522,1767047440230,-672389.36906799,0.00020187,2]
[400040524,1767047440244,-156179.58542819,0.00020187,2]
[400040525,1767047440257,-171431.04550382,0.00020187,2]
[400040526,1767047440269,-10115.37,0.000202,2]
[400040527,1767047440279,-15277.58765553,0.00020297,2]
[400040528,1767047440290,-250.59874947,0.00020397,2]
[400040529,1767047440302,-163.0,0.00020548,3]
[400040530,1767047440314,-3005.1398943,0.00020808,2]
[400040531,1767047440325,-2000.0,0.00020815,7]
[400040532,1767047440336,-158.1424324,0.00020854,2]
[400040533,1767047440347,-222.3,0.00020859,2]
[400040534,1767047440359,-30839.32257471,0.00021,2]
[400040535,1767047440369,-250.85059947,0.00021097,2]
[400040536,1767047440379,-1000.0,0.00021113,10]
[400040537,1767047440391,-244.0,0.00021113,10]
[400040538,1767047440402,-258.0,0.00021385,2]
[400040539,1767047440412,-1348.5643003,0.000215,2]
[400040540,1767047440424,-2000.0,0.00021581,7]
[400040541,1767047440436,-500.0,0.00021828,2]
[400040542,1767047440448,-500.0,0.00021854,2]
[400040543,1767047440460,-222.3,0.00021908,2]
[400040544,1767047440471,-500.0,0.00021917,2]
[400040545,1767047440483,-500.0,0.00021917,2]
[400040546,1767047440495,-500.0,0.00021917,2]
[400040547,1767047440507,-500.0,0.00021917,2]
[400040548,1767047440519,-266.12580852,0.00021917,2]
[400040549,1767047440531,-249.9681414,0.00021917,2]
[400040550,1767047440540,-3812.98587282,0.00021917,2]
[400040551,1767047440550,-296.36211743,0.00021917,2]
[400040552,1767047440560,-500.0,0.00021917,2]
[400040553,1767047440569,-460.4,0.00021917,2]
[400040554,1767047440580,-500.0,0.00021917,2]
[400040555,1767047440590,-501.89029961,0.00021917,2]
[400040556,1767047440601,-281.13326683,0.00021917,2]
[400040557,1767047440614,-441.60555769,0.00021917,2]
[400040558,1767047440624,-276.4405767,0.00021917,2]
[400040559,1767047440636,-363.91423782,0.00021917,2]
[400040560,1767047440646,-314.14014211,0.00021917,2]
[400040561,1767047440656,-181.669416,0.00021917,2]
[400040562,1767047440667,-539.0850877,0.00021917,2]
[400040563,1767047440680,-189.07333693,0.00021917,2]
[400040564,1767047440692,-419.94997901,0.00021917,2]
[400040565,1767047440704,-497.71228405,0.00021917,2]
[400040566,1767047440715,-500.0,0.00021917,2]
[400040567,1767047440726,-420.23607407,0.00021917,2]
[400040568,1767047440736,-336.11535103,0.00021917,2]
[400040569,1767047440746,-474.25212021,0.00021917,2]
[400040570,1767047440756,-322.21446513,0.00021917,2]
[400040571,1767047440766,-454.77996909,0.00021917,2]
[400040572,1767047440776,-506.42329108,0.00021917,2]
[400040573,1767047440786,-500.0,0.00021917,2]
[400040574,1767047440796,-500.0,0.00021917,2]
[400040575,1767047440807,-449.40365979,0.00021917,2]
[400040576,1767047440819,-471.79543403,0.00021917,2]
[400040577,1767047440830,-208.37773591,0.00021917,2]
[400040578,1767047440840,-500.0,0.00021917,2]
[400040579,1767047440851,-221.67463703,0.00021917,2]
[400040580,1767047440861,-312.19237023,0.00021917,2]
[400040581,1767047440872,-442.47098096,0.00021917,2]
[400040582,1767047440882,-634.2289801,0.00021917,2]
[400040583,1767047440893,-489.5909872,0.00021917,2]
[400040584,1767047440903,-365.10181785,0.00021917,2]
[400040585,1767047440913,-500.0,0.00021917,2]
[400040586,1767047440924,-477.6934302,0.00021917,2]
[400040587,1767047440934,-487.77119636,0.00021917,2]
[400040588,1767047440945,-320.64526273,0.00021917,2]
[400040589,1767047440955,-500.0,0.00021917,2]
[400040590,1767047440965,-229.88879352,0.00021917,2]
[400040591,1767047440976,-215.83814389,0.00021917,2]
[400040592,1767047440986,-333.99912007,0.00021917,2]
[400040593,1767047440997,-464.38811206,0.00021917,2]
[400040594,1767047441016,-273.35091311,0.00021917,2]
[400040595,1767047441034,-319.68950835,0.00021917,2]
[400040596,1767047441048,-327.11223151,0.00021917,2]
[400040597,1767047441064,-485.56870717,0.00021917,2]
[400040598,1767047441079,-186.48937392,0.00021917,2]
[400040599,1767047441092,-596.55559848,0.00021917,2]
[400040600,1767047441108,-293.1369972,0.00021917,2]
[400040601,1767047441121,-500.0,0.00021917,2]
[400040602,1767047441133,-187.90611098,0.00021917,2]
[400040603,1767047441146,-376.73083576,0.00021917,2]
[400040604,1767047441158,-203.35647701,0.00021917,2]
[400040605,1767047441172,-461.88261165,0.00021917,2]
[400040606,1767047441184,-1000.0,0.00021917,2]
[400040607,1767047441197,-290.15325278,0.00021917,2]
[400040608,1767047441210,-500.0,0.00021917,2]
[400040609,1767047441223,-465.70568753,0.00021917,2]
[400040610,1767047441235,-323.76444914,0.00021917,2]
[400040611,1767047441247,-427.64161233,0.00021917,2]
[400040612,1767047441259,-500.0,0.00021917,2]
[400040613,1767047441270,-409.43073117,0.00021917,2]
[400040614,1767047441284,-496.84809073,0.00021917,2]
[400040615,1767047441295,-200.01707268,0.00021917,2]
[400040616,1767047441307,-487.22662135,0.00021917,2]
[400040617,1767047441318,-275.06643056,0.00021917,2]
[400040618,1767047441330,-360.97170815,0.00021917,2]
[400040619,1767047441342,-488.04044067,0.00021917,2]